[Event "Nordic-chT Scholastic 2019"]
[Site "Stockholm"]
[Date "2019.09.08"]
[Round "5.5"]
[White "Skovgaard, Andreas"]
[Black "Ivarsson, Sebastian"]
[Result "0-1"]
[ECO "E81"]
[WhiteElo "1976"]
[BlackElo "1976"]
[Annotator "NA"]
[PlyCount "90"]
[EventDate "2019.09.05"]
[EventType "team-tourn"]
[EventCountry "SWE"]
[SourceTitle "playchess.com"]
[Source "ChessBase"]
[SourceQuality "1"]
[TimeControl "5400+30"]

1. d4 {[%emt 0:00:00]} Nf6 {[%emt 0:00:00]} 2. c4 {[%emt 0:00:00]} g6 {[%emt 0:00:25]} 3. Nc3 {[%emt 0:00:11]} Bg7 {[%emt 0:00:05]} 4. e4 {[%emt 0:00:18]} d6 {[%emt 0:00:10]} 5. f3 {[%emt 0:00:24]} O-O {[%emt 0:00:40]} 6. Be3 {[%emt 0:00:26]} c5 {[%emt 0:00:43]} 7. Nge2 {[%emt 0:01:15]} Nc6 {[%emt 0:02:07]} 8. d5 {[%emt 0:01:36]} Ne5 {[%emt 0:01:32]} 9. Ng3 {[%emt 0:01:18]} h5 {[%emt 0:06:30]} 10. Bd3 {[%emt 0:01:26]} e6 {[%emt 0:02:01]} 11. Bg5 {[%emt 0:13:14]} Qb6 {[%emt 0:05:56]} 12. O-O {[%emt 0:02:26]} Nh7 {[%emt 0:09:03]} 13. Be3 {[%emt 0:04:37]} a6 {[%emt 0:07:38]} 14. Rb1 {[%emt 0:01:28]} Qc7 {[%emt 0:04:16]} 15. h3 {[%emt 0:12:43]} Nf6 {[%emt 0:16:23]} 16. Be2 {[%emt 0:03:18]} exd5 {[%emt 0:02:18]} 17. exd5 {[%emt 0:01:06]} Re8 {[%emt 0:04:41]} 18. Bg5 {[%emt 0:07:54]} Nh7 {[%emt 0:05:11]} 19. Bf4 {[%emt 0:01:26]} h4 {[%emt 0:05:03]} 20. Nge4 {[%emt 0:03:03]} f5 {[%emt 0:00:47]} 21. Nf2 {[%emt 0:02:17]} g5 {[%emt 0:01:23]} 22. Bd2 {[%emt 0:01:32]} Ng6 {[%emt 0:02:31]} 23. Bd3 {[%emt 0:03:56]} Bd4 {[%emt 0:01:27]} 24. Qc2 {[%emt 0:01:37]} Qf7 {[%emt 0:00:58]} 25. Kh1 {[%emt 0:01:06]} Ne5 {[%emt 0:03:26]} 26. Rbe1 {[%emt 0:02:09]} Bd7 {[%emt 0:01:47]} 27. Ng4 {[%emt 0:07:39]} fxg4 {[%emt 0:04:20]} 28. fxg4 {[%emt 0:00:26]} Qg7 {[%emt 0:00:18]} 29. Bxh7+ {[%emt 0:01:05]} Qxh7 {[%emt 0:00:06]} 30. Qxh7+ {[%emt 0:00:34]} Kxh7 {[%emt 0:00:03]} 31. Rxe5 {[%emt 0:02:12]} Bxe5 {[%emt 0:01:21]} 32. Rf7+ {[%emt 0:01:48]} Kg6 {[%emt 0:01:22]} 33. Rxd7 {[%emt 0:00:13]} Rf8 {[%emt 0:00:29]} 34. Be3 {[%emt 0:00:35]} Rf1+ {[%emt 0:00:18]} 35. Bg1 {[%emt 0:00:07]} Bd4 {[%emt 0:01:00]} 36. Rxd6+ {[%emt 0:00:50]} Kf7 {[%emt 0:00:07]} 37. Ne2 {[%emt 0:01:35]} Re8 {[%emt 0:00:30]} 38. Re6 {[%emt 0:01:38]} Rxe6 {[%emt 0:00:32]} 39. dxe6+ {[%emt 0:00:05]} Kxe6 {[%emt 0:00:04]} 40. Kh2 {[%emt 0:00:23]} Be5+ {[%emt 0:01:34]} 41. g3 {[%emt 0:00:51]} Re1 {[%emt 0:00:43]} 42. Nc3 {[%emt 0:00:34]} Bxc3 {[%emt 0:00:23]} 43. bxc3 {[%emt 0:00:03]} Re2+ {[%emt 0:00:05]} 44. Kh1 {[%emt 0:00:05]} hxg3 {[%emt 0:00:11]} 45. Bxc5 {[%emt 0:00:39]} Rxa2 {[%emt 0:00:14]} 0-1

[Event "Nordic-chT Scholastic 2019"]
[Site "Stockholm"]
[Date "2019.09.08"]
[Round "5.6"]
[White "Dingertz, Erik"]
[Black "Skovgaard, Emil"]
[Result "1-0"]
[ECO "A22"]
[WhiteElo "1896"]
[BlackElo "1729"]
[Annotator "NA"]
[PlyCount "115"]
[EventDate "2019.09.05"]
[EventType "team-tourn"]
[EventCountry "SWE"]
[SourceTitle "playchess.com"]
[Source "ChessBase"]
[SourceQuality "1"]
[TimeControl "5400+30"]

1. c4 e5 {[%emt 0:00:00]} 2. Nc3 {[%emt 0:00:21]} Nf6 {[%emt 0:00:22]} 3. g3 {[%emt 0:00:30]} Nc6 {[%emt 0:00:30]} 4. Bg2 {[%emt 0:00:30]} Bb4 {[%emt 0:00:30]} 5. d3 {[%emt 0:00:30]} O-O {[%emt 0:00:30]} 6. Bd2 {[%emt 0:00:30]} Bxc3 {[%emt 0:00:30]} 7. Bxc3 {[%emt 0:00:30]} d5 {[%emt 0:00:30]} 8. cxd5 {[%emt 0:00:30]} Nxd5 {[%emt 0:00:30]} 9. Nf3 {[%emt 0:00:30]} Nxc3 {[%emt 0:00:30]} 10. bxc3 {[%emt 0:00:30]} Be6 {[%emt 0:00:30]} 11. O-O {[%emt 0:00:30]} f6 {[%emt 0:00:30]} 12. Rb1 {[%emt 0:00:30]} Rb8 {[%emt 0:00:30]} 13. Qa4 {[%emt 0:00:30]} Qd7 {[%emt 0:00:30]} 14. Rfd1 {[%emt 0:00:30]} Qd8 {[%emt 0:38:49]} 15. Rf1 {[%emt 0:04:01]} Qd7 {[%emt 0:08:19]} 16. Rfd1 {[%emt 0:03:46]} Bh3 {[%emt 0:03:50]} 17. d4 {[%emt 0:02:09]} e4 {[%emt 0:05:39]} 18. Ne1 {[%emt 0:02:12]} Bxg2 {[%emt 0:04:07]} 19. Nxg2 {[%emt 0:00:09]} Rfd8 {[%emt 0:07:11]} 20. d5 {[%emt 0:01:58]} Ne7 {[%emt 0:01:25]} 21. Qxe4 {[%emt 0:00:47]} Nxd5 {[%emt 0:02:48]} 22. Nf4 {[%emt 0:01:47]} c6 {[%emt 0:03:42]} 23. c4 {[%emt 0:00:38]} Nc3 {[%emt 0:00:38]} 24. Rxd7 {[%emt 0:00:06]} Nxe4 {[%emt 0:00:02]} 25. Rxd8+ {[%emt 0:00:17]} Rxd8 {[%emt 0:00:10]} 26. Rxb7 {[%emt 0:00:13]} Nd6 {[%emt 0:04:44]} 27. Rxa7 {[%emt 0:01:13]} Nxc4 {[%emt 0:02:36]} 28. Ne6 {[%emt 0:00:09]} Rd1+ {[%emt 0:00:25]} 29. Kg2 {[%emt 0:00:05]} g6 {[%emt 0:00:16]} 30. Rg7+ {[%emt 0:00:07]} Kh8 {[%emt 0:00:06]} 31. Rc7 {[%emt 0:00:07]} h5 {[%emt 0:02:27]} 32. Rxc6 {[%emt 0:00:23]} Rc1 {[%emt 0:00:55]} 33. Rc8+ {[%emt 0:01:22]} Kh7 {[%emt 0:01:02]} 34. Rc7+ {[%emt 0:00:10]} Kh6 {[%emt 0:02:01]} 35. a4 {[%emt 0:00:15]} Rc2 {[%emt 0:00:30]} 36. a5 {[%emt 0:00:20]} Rxe2 {[%emt 0:01:26]} 37. Nd4 {[%emt 0:00:24]} Ne3+ {[%emt 0:02:07]} 38. Kf3 {[%emt 0:00:06]} Nd5 {[%emt 0:00:05]} 39. Rc5 {[%emt 0:01:42]} Re5 {[%emt 0:00:40]} 40. a6 {[%emt 0:00:23]} g5 {[%emt 0:00:55]} 41. a7 {[%emt 0:01:22]} g4+ {[%emt 0:01:02]} 42. Kg2 {[%emt 0:00:05]} Nb6 {[%emt 0:01:13]} 43. Rxe5 {[%emt 0:00:17]} fxe5 {[%emt 0:00:07]} 44. Nb5 {[%emt 0:00:33]} Na8 {[%emt 0:00:11]} 45. Kf1 {[%emt 0:00:06]} Kg5 {[%emt 0:00:49]} 46. Ke2 {[%emt 0:00:07]} h4 {[%emt 0:00:46]} 47. Ke3 {[%emt 0:00:15]} h3 {[%emt 0:00:19]} 48. Ke4 {[%emt 0:00:19]} Kf6 {[%emt 0:00:08]} 49. Kd5 {[%emt 0:00:37]} Kf5 {[%emt 0:00:38]} 50. Nd6+ {[%emt 0:00:22]} Kf6 {[%emt 0:00:06]} 51. Kc6 {[%emt 0:00:08]} Ke6 {[%emt 0:00:18]} 52. Nc4 {[%emt 0:00:21]} Kf5 {[%emt 0:00:32]} 53. Kb7 {[%emt 0:00:16]} Ke4 {[%emt 0:00:06]} 54. Kxa8 {[%emt 0:00:17]} Kf3 {[%emt 0:00:20]} 55. Nxe5+ {[%emt 0:00:04]} Kxf2 {[%emt 0:00:04]} 56. Nxg4+ {[%emt 0:00:06]} Kf3 {[%emt 0:00:04]} 57. Kb8 {[%emt 0:00:07]} Kxg4 {[%emt 0:00:09]} 58. a8=Q {[%emt 0:00:02]} 1-0

[Event "Nordic-chT Scholastic 2019"]
[Site "Stockholm"]
[Date "2019.09.08"]
[Round "5.7"]
[White "Kraemmer, Kischichiro"]
[Black "Stromgard, Martin"]
[Result "0-1"]
[ECO "D02"]
[WhiteElo "1591"]
[BlackElo "1648"]
[Annotator "NA"]
[PlyCount "70"]
[EventDate "2019.09.05"]
[EventType "team-tourn"]
[EventCountry "SWE"]
[SourceTitle "playchess.com"]
[Source "ChessBase"]
[SourceQuality "1"]
[TimeControl "5400+30"]

1. d4 {[%emt 0:00:00]} d5 {[%emt 0:00:00]} 2. Nf3 {[%emt 0:00:30]} c5 {[%emt 0:00:30]} 3. e3 {[%emt 0:00:30]} Nc6 {[%emt 0:00:30]} 4. c4 {[%emt 0:00:30]} Bg4 {[%emt 0:00:30]} 5. Be2 {[%emt 0:00:30]} cxd4 {[%emt 0:00:30]} 6. Nxd4 {[%emt 0:00:30]} Bxe2 {[%emt 0:00:30]} 7. Kxe2 {[%emt 0:00:30]} dxc4 {[%emt 0:00:30]} 8. Nxc6 {[%emt 0:00:30]} bxc6 {[%emt 0:00:30]} 9. Qxd8+ {[%emt 0:00:30]} Kxd8 {[%emt 0:51:36]} 10. Bd2 {[%emt 0:13:55]} Rb8 {[%emt 0:03:44]} 11. Bc3 {[%emt 0:00:26]} e6 {[%emt 0:02:25]} 12. Nd2 {[%emt 0:00:37]} Ne7 {[%emt 0:03:03]} 13. Nxc4 {[%emt 0:00:47]} Nd5 {[%emt 0:00:59]} 14. Rhd1 {[%emt 0:00:34]} Kc8 {[%emt 0:01:03]} 15. Be5 {[%emt 0:08:24]} Rb7 {[%emt 0:00:41]} 16. Rac1 {[%emt 0:06:16]} Rd7 {[%emt 0:13:12]} 17. Na5 {[%emt 0:08:04]} c5 {[%emt 0:00:22]} 18. Nb3 {[%emt 0:00:11]} f6 {[%emt 0:04:39]} 19. Nxc5 {[%emt 0:01:42]} Bxc5 {[%emt 0:01:30]} 20. Rxc5+ {[%emt 0:00:12]} Kb7 {[%emt 0:00:17]} 21. e4 {[%emt 0:05:03]} Kb6 {[%emt 0:02:58]} 22. Bd4 {[%emt 0:07:02]} Nf4+ {[%emt 0:00:12]} 23. Kf3 {[%emt 0:00:14]} Rxd4 {[%emt 0:00:20]} 24. Rdc1 {[%emt 0:01:46]} Nd3 {[%emt 0:00:21]} 25. Rc6+ {[%emt 0:00:12]} Kb5 {[%emt 0:00:09]} 26. Rc8 {[%emt 0:04:53]} Nxc1 {[%emt 0:04:15]} 27. Rxh8 {[%emt 0:00:24]} Rd3+ {[%emt 0:00:53]} 28. Kg4 {[%emt 0:00:42]} Rd2 {[%emt 0:00:13]} 29. Kf3 {[%emt 0:00:27]} h6 {[%emt 0:00:42]} 30. Rb8+ {[%emt 0:03:48]} Ka6 31. Rb4 {[%emt 0:18:25]} Nd3 {[%emt 0:03:21]} 32. Ra4+ {[%emt 0:00:44]} Kb6 {[%emt 0:00:34]} 33. Ke3 {[%emt 0:00:29]} Nxb2 {[%emt 0:00:06]} 34. Rb4+ {[%emt 0:01:04]} Kc5 {[%emt 0:00:06]} 35. Rb3 {[%emt 0:00:31]} Nc4+ {[%emt 0:00:18] Kd4+} 0-1

[Event "Nordic-chT Scholastic 2019"]
[Site "Stockholm"]
[Date "2019.09.08"]
[Round "5.9"]
[White "Briem, Benedikt"]
[Black "Olsen, William Alexander"]
[Result "0-1"]
[ECO "A46"]
[WhiteElo "1906"]
[BlackElo "1800"]
[Annotator "NA"]
[PlyCount "164"]
[EventDate "2019.09.05"]
[EventType "team-tourn"]
[EventCountry "SWE"]
[SourceTitle "playchess.com"]
[Source "ChessBase"]
[SourceQuality "1"]
[TimeControl "5400+30"]

1. d4 {[%emt 0:00:00]} Nf6 {[%emt 0:00:00]} 2. Nf3 {[%emt 0:00:36]} e6 {[%emt 0:00:00]} 3. Bf4 {[%emt 0:00:11]} b6 {[%emt 0:00:01]} 4. Nbd2 {[%emt 0:00:28]} Bb7 {[%emt 0:00:16]} 5. e3 {[%emt 0:00:14]} Be7 {[%emt 0:00:14]} 6. Bd3 {[%emt 0:00:15]} d6 {[%emt 0:00:11]} 7. h3 {[%emt 0:00:09]} Nbd7 {[%emt 0:00:39]} 8. O-O {[%emt 0:05:38]} O-O {[%emt 0:01:56]} 9. c3 {[%emt 0:02:09]} Re8 {[%emt 0:03:00]} 10. e4 {[%emt 0:04:06]} Bf8 {[%emt 0:03:28]} 11. e5 {[%emt 0:02:46]} dxe5 {[%emt 0:00:19]} 12. dxe5 {[%emt 0:02:28]} Nd5 {[%emt 0:00:21]} 13. Bxh7+ {[%emt 0:04:20]} Kh8 {[%emt 0:03:08]} 14. Ng5 {[%emt 0:00:47]} Nxe5 {[%emt 0:00:39]} 15. Bxe5 {[%emt 0:15:45]} Qxg5 {[%emt 0:00:12]} 16. Nf3 {[%emt 0:01:14]} Qh5 {[%emt 0:00:51]} 17. Bd3 {[%emt 0:16:16]} Bd6 {[%emt 0:05:59]} 18. Bxd6 {[%emt 0:02:03]} cxd6 {[%emt 0:00:34]} 19. Qd2 {[%emt 0:12:47]} e5 {[%emt 0:05:20]} 20. Qg5 {[%emt 0:08:27]} Nf4 {[%emt 0:01:35]} 21. Qxh5+ {[%emt 0:03:24]} Nxh5 {[%emt 0:00:10]} 22. Bb5 {[%emt 0:01:09]} Re6 {[%emt 0:01:21]} 23. Bd7 {[%emt 0:06:17]} Re7 {[%emt 0:01:01]} 24. Bg4 {[%emt 0:00:21]} Nf4 {[%emt 0:02:07]} 25. Nh4 {[%emt 0:01:03]} g6 {[%emt 0:00:51]} 26. g3 {[%emt 0:00:25]} Nd5 {[%emt 0:00:37]} 27. Rad1 {[%emt 0:02:06]} Rd8 {[%emt 0:00:50]} 28. Rfe1 {[%emt 0:00:44]} e4 {[%emt 0:01:04]} 29. Ng2 {[%emt 0:02:16]} f5 {[%emt 0:00:13]} 30. Be2 {[%emt 0:00:27]} Nf6 {[%emt 0:00:40]} 31. Nf4 {[%emt 0:00:27]} Kh7 {[%emt 0:00:26]} 32. h4 {[%emt 0:00:51]} Re5 {[%emt 0:02:07]} 33. Rd4 {[%emt 0:02:17]} Nd5 {[%emt 0:05:24]} 34. Nh3 {[%emt 0:01:10]} Ne7 {[%emt 0:01:02]} 35. Red1 {[%emt 0:00:32]} d5 {[%emt 0:00:43]} 36. Ng5+ {[%emt 0:00:44]} Kg7 {[%emt 0:00:20]} 37. f4 {[%emt 0:00:35]} exf3 {[%emt 0:00:02]} 38. Bxf3 {[%emt 0:00:05]} b5 {[%emt 0:01:21]} 39. Nh3 {[%emt 0:01:28]} Nc8 {[%emt 0:01:55]} 40. a4 {[%emt 0:00:32]} a6 {[%emt 0:01:06]} 41. a5 {[%emt 0:00:00]} Ne7 {[%emt 0:00:53]} 42. Nf4 {[%emt 0:00:24]} Re8 {[%emt 0:05:41]} 43. Nxd5 {[%emt 0:01:44]} Nc6 {[%emt 0:00:58]} 44. R4d3 {[%emt 0:00:40]} Nxa5 {[%emt 0:00:38]} 45. Nb4 {[%emt 0:00:59]} Bxf3 {[%emt 0:00:40]} 46. Rxf3 {[%emt 0:00:09]} Nc4 {[%emt 0:00:50]} 47. Rd7+ {[%emt 0:00:34]} Kh6 {[%emt 0:00:05]} 48. Nd3 {[%emt 0:00:50]} Re2 {[%emt 0:00:51]} 49. g4 {[%emt 0:00:50]} Nxb2 {[%emt 0:01:50]} 50. g5+ {[%emt 0:00:20]} Kh5 {[%emt 0:00:19]} 51. Nxb2 {[%emt 0:00:46]} Rxb2 {[%emt 0:00:10]} 52. Rd4 {[%emt 0:00:34]} Rc2 {[%emt 0:00:28]} 53. Kf1 {[%emt 0:00:25]} Re4 {[%emt 0:00:30]} 54. Rxe4 {[%emt 0:00:33]} fxe4 {[%emt 0:00:22]} 55. Rf4 {[%emt 0:00:20]} e3 {[%emt 0:00:13]} 56. Re4 {[%emt 0:00:29]} Rxc3 {[%emt 0:00:17]} 57. Ke2 {[%emt 0:00:20]} Rc4 {[%emt 0:00:08]} 58. Re6 {[%emt 0:00:09]} Rxh4 {[%emt 0:00:22]} 59. Rxa6 {[%emt 0:00:19]} Re4 {[%emt 0:00:22]} 60. Rc6 {[%emt 0:00:47]} Re5 {[%emt 0:00:11]} 61. Rc8 {[%emt 0:00:20]} Kxg5 {[%emt 0:00:06]} 62. Rb8 {[%emt 0:00:18]} Kf4 {[%emt 0:00:27]} 63. Rd8 {[%emt 0:00:23]} g5 {[%emt 0:00:55]} 64. Rf8+ {[%emt 0:00:39]} Ke4 {[%emt 0:00:22]} 65. Rf7 {[%emt 0:00:43]} g4 {[%emt 0:00:58]} 66. Rf8 {[%emt 0:00:51]} g3 {[%emt 0:02:09]} 67. Rf3 {[%emt 0:00:53]} g2 {[%emt 0:00:48]} 68. Rg3 {[%emt 0:00:10]} Kd4 {[%emt 0:00:39]} 69. Rxg2 {[%emt 0:00:32]} b4 {[%emt 0:00:53]} 70. Rg8 {[%emt 0:00:39]} b3 {[%emt 0:01:11]} 71. Rb8 {[%emt 0:00:27]} Kc4 {[%emt 0:00:41]} 72. Rc8+ {[%emt 0:00:08]} Rc5 {[%emt 0:00:14]} 73. Rb8 {[%emt 0:00:07]} Kc3 {[%emt 0:00:08]} 74. Kxe3 {[%emt 0:00:34]} b2 {[%emt 0:00:15]} 75. Ke2 {[%emt 0:00:44]} Kc2 {[%emt 0:00:07]} 76. Rd8 {[%emt 0:00:41]} b1=Q {[%emt 0:00:08]} 77. Rd2+ {[%emt 0:00:10]} Kc3 {[%emt 0:00:09]} 78. Rd1 {[%emt 0:00:27]} Re5+ {[%emt 0:00:07]} 79. Kf2 {[%emt 0:00:06]} Qxd1 {[%emt 0:00:07]} 80. Kg2 {[%emt 0:00:08]} Qe2+ {[%emt 0:00:11]} 81. Kg3 {[%emt 0:00:17]} Rg5+ {[%emt 0:00:10]} 82. Kf4 {[%emt 0:00:05]} Qe5+ 0-1

[Event "Nordic-chT Scholastic 2019"]
[Site "Stockholm"]
[Date "2019.09.08"]
[Round "5.10"]
[White "Elmi, Saad Abobaker"]
[Black "Briem, Gudrun Fanney"]
[Result "1-0"]
[ECO "A10"]
[WhiteElo "1620"]
[BlackElo "1185"]
[Annotator "NA"]
[PlyCount "107"]
[EventDate "2019.09.05"]
[EventType "team-tourn"]
[EventCountry "SWE"]
[SourceTitle "playchess.com"]
[Source "ChessBase"]
[SourceQuality "1"]
[TimeControl "5400+30"]

1. c4 {[%emt 0:00:00]} g6 {[%emt 0:00:48]} 2. Nf3 {[%emt 0:00:00]} Bg7 {[%emt 0:00:34]} 3. d4 {[%emt 0:00:12]} Nf6 {[%emt 0:00:25]} 4. g3 {[%emt 0:00:15]} O-O {[%emt 0:00:24]} 5. Bg2 {[%emt 0:00:06]} d6 {[%emt 0:00:11]} 6. O-O {[%emt 0:00:23]} Bg4 {[%emt 0:00:29]} 7. Nc3 {[%emt 0:00:21]} Nbd7 {[%emt 0:01:13]} 8. Qb3 {[%emt 0:02:48]} Rb8 {[%emt 0:02:41]} 9. Rd1 {[%emt 0:00:44]} c6 {[%emt 0:00:50]} 10. h3 {[%emt 0:01:22]} Bxf3 {[%emt 0:01:25]} 11. Bxf3 {[%emt 0:00:13]} Qc7 {[%emt 0:01:13]} 12. Be3 {[%emt 0:01:18]} e5 {[%emt 0:01:37]} 13. dxe5 {[%emt 0:00:58]} dxe5 {[%emt 0:00:35]} 14. Bxa7 {[%emt 0:00:30]} Ra8 {[%emt 0:01:30]} 15. Be3 {[%emt 0:00:21]} Kh8 {[%emt 0:00:35]} 16. Bg2 {[%emt 0:01:09]} Ne8 {[%emt 0:00:27]} 17. Rd2 {[%emt 0:00:17]} f5 {[%emt 0:00:45]} 18. Rad1 {[%emt 0:01:08]} Nef6 {[%emt 0:01:40]} 19. Qb4 {[%emt 0:07:29]} Rf7 {[%emt 0:06:17]} 20. Qd6 {[%emt 0:00:30]} Qxd6 {[%emt 0:02:22]} 21. Rxd6 {[%emt 0:01:01]} Re8 {[%emt 0:02:06]} 22. b4 {[%emt 0:00:42]} h6 {[%emt 0:03:05]} 23. b5 {[%emt 0:00:13]} cxb5 {[%emt 0:02:20]} 24. cxb5 {[%emt 0:00:15]} e4 {[%emt 0:00:40]} 25. Bd4 {[%emt 0:01:21]} Bf8 {[%emt 0:02:06]} 26. Rxd7 {[%emt 0:02:06]} Kg8 27. Rxf7 {[%emt 0:01:05]} Kxf7 {[%emt 0:02:34]} 28. e3 {[%emt 0:01:26]} Rd8 {[%emt 0:02:26]} 29. f3 {[%emt 0:01:38]} Bb4 {[%emt 0:03:00]} 30. Bxf6 {[%emt 0:00:34]} Rxd1+ {[%emt 0:00:15]} 31. Nxd1 {[%emt 0:00:10]} Kxf6 {[%emt 0:00:11]} 32. fxe4 {[%emt 0:00:02]} fxe4 {[%emt 0:00:57]} 33. Bxe4 {[%emt 0:00:08]} b6 {[%emt 0:00:15]} 34. Kf1 {[%emt 0:00:05]} g5 {[%emt 0:00:44]} 35. Ke2 {[%emt 0:00:14]} Bd6 {[%emt 0:02:27]} 36. g4 {[%emt 0:00:37]} Ke5 {[%emt 0:03:03]} 37. Kd3 {[%emt 0:00:48]} Bc5 {[%emt 0:00:17]} 38. Nc3 {[%emt 0:01:23]} Bb4 {[%emt 0:02:40]} 39. Ne2 {[%emt 0:00:57]} Bc5 {[%emt 0:01:25]} 40. Nd4 {[%emt 0:00:07]} Bd6 {[%emt 0:03:47]} 41. a4 {[%emt 0:00:59]} Bc7 {[%emt 0:02:14]} 42. Nf5 {[%emt 0:00:33]} Kf6 {[%emt 0:02:49]} 43. Kd4 {[%emt 0:00:16]} Kg6 {[%emt 0:01:34]} 44. Kd5 {[%emt 0:00:09]} h5 {[%emt 0:02:40]} 45. Nd4+ {[%emt 0:00:16]} Kh6 {[%emt 0:00:26]} 46. Ne6 {[%emt 0:00:52]} Bg3 {[%emt 0:00:30]} 47. Kc6 {[%emt 0:00:31]} Bf2 {[%emt 0:00:43]} 48. Nc7 {[%emt 0:00:17]} Bxe3 {[%emt 0:00:29]} 49. Nd5 {[%emt 0:00:07]} Bg1 {[%emt 0:00:23]} 50. Nxb6 {[%emt 0:00:05]} hxg4 {[%emt 0:00:24]} 51. hxg4 {[%emt 0:00:33]} Bd4 {[%emt 0:02:23]} 52. a5 {[%emt 0:00:26]} Be5 {[%emt 0:00:32]} 53. a6 {[%emt 0:00:11]} Bb8 {[%emt 0:00:06]} 54. Kb7 {[%emt 0:00:20]} 1-0